[Event "New Zealand Rapid Championship"]
[Site "Wellington"]
[Date "2023.01.12"]
[Round "7.3"]
[White "Croad, Nicolas"]
[Black "Van Riemsdijk, Herman C."]
[Result "1-0"]
[TimeControl "25+5"]
[WhiteTitle "FM"]
[BlackTitle "IM"]
[WhiteFideId "4300793"]
[BlackFideId "2100053"]
[WhiteElo "2309"]
[BlackElo "2370"]

1. d4 {[%clk 00:25:08]} {[%emt 00:00:01]} c5 {[%clk 00:25:08]} {[%emt
00:00:02]} 2. d5 {[%clk 00:25:10]} {[%emt 00:00:03]} Nf6 {[%clk 00:25:07]}
{[%emt 00:00:06]} 3. c4 {[%clk 00:25:13]} {[%emt 00:00:03]} b5 {[%clk
00:25:08]} {[%emt 00:00:04]} 4. cxb5 {[%clk 00:25:15]} {[%emt 00:00:02]} a6
{[%clk 00:25:10]} {[%emt 00:00:03]} 5. bxa6 {[%clk 00:25:08]} {[%emt 00:00:12]}
Bxa6 {[%clk 00:25:05]} {[%emt 00:00:10]} 6. Nc3 {[%clk 00:25:10]} {[%emt
00:00:03]} g6 {[%clk 00:25:04]} {[%emt 00:00:06]} 7. e4 {[%clk 00:25:11]}
{[%emt 00:00:04]} Bxf1 {[%clk 00:25:05]} {[%emt 00:00:04]} 8. Kxf1 {[%clk
00:25:15]} {[%emt 00:00:01]} d6 {[%clk 00:25:01]} {[%emt 00:00:09]} 9. Nf3
{[%clk 00:25:18]} {[%emt 00:00:02]} Bg7 {[%clk 00:25:03]} {[%emt 00:00:04]} 10.
g3 {[%clk 00:25:21]} {[%emt 00:00:02]} O-O {[%clk 00:24:53]} {[%emt 00:00:14]}
11. Kg2 {[%clk 00:25:24]} {[%emt 00:00:02]} Qb6 {[%clk 00:24:45]} {[%emt
00:00:14]} 12. Qc2 {[%clk 00:24:46]} {[%emt 00:00:43]} Na6 {[%clk 00:24:34]}
{[%emt 00:00:16]} 13. Bg5 {[%clk 00:23:44]} {[%emt 00:01:06]} Rfb8 {[%clk
00:24:10]} {[%emt 00:00:29]} 14. b3 {[%clk 00:22:23]} {[%emt 00:01:26]} Nb4
{[%clk 00:23:07]} {[%emt 00:01:08]} 15. Qe2 {[%clk 00:22:18]} {[%emt 00:00:10]}
Qa6 {[%clk 00:23:00]} {[%emt 00:00:13]} 16. Qxa6 {[%clk 00:20:05]} {[%emt
00:02:17]} Rxa6 {[%clk 00:22:59]} {[%emt 00:00:06]} 17. a4 {[%clk 00:20:00]}
{[%emt 00:00:10]} Nd7 {[%clk 00:22:21]} {[%emt 00:00:43]} 18. Bd2 {[%clk
00:18:20]} {[%emt 00:01:45]} Ne5 {[%clk 00:16:49]} {[%emt 00:05:37]} 19. Nxe5
{[%clk 00:18:13]} {[%emt 00:00:12]} Bxe5 {[%clk 00:16:48]} {[%emt 00:00:06]} 20.
Rab1 {[%clk 00:18:02]} {[%emt 00:00:17]} f5 {[%clk 00:15:43]} {[%emt 00:01:10]}
21. Nb5 {[%clk 00:16:20]} {[%emt 00:01:47]} Nd3 {[%clk 00:14:22]} {[%emt
00:01:26]} 22. exf5 {[%clk 00:14:34]} {[%emt 00:01:52]} gxf5 {[%clk 00:14:25]}
{[%emt 00:00:02]} 23. Rhd1 {[%clk 00:13:46]} {[%emt 00:00:52]} c4 {[%clk
00:13:49]} {[%emt 00:00:41]} 24. Bc3 {[%clk 00:11:31]} {[%emt 00:02:21]} Bxc3
{[%clk 00:06:02]} {[%emt 00:07:52]} 25. Nxc3 {[%clk 00:11:34]} {[%emt
00:00:01]} Ne5 {[%clk 00:05:46]} {[%emt 00:00:21]} 26. bxc4 {[%clk 00:09:52]}
{[%emt 00:01:47]} Rc8 {[%clk 00:05:40]} {[%emt 00:00:11]} 27. Rd4 {[%clk
00:07:42]} {[%emt 00:02:15]} Rxc4 {[%clk 00:05:37]} {[%emt 00:00:08]} 28. Rxc4
{[%clk 00:07:41]} {[%emt 00:00:06]} Nxc4 {[%clk 00:05:39]} {[%emt 00:00:03]} 29.
Rb4 {[%clk 00:07:43]} {[%emt 00:00:03]} Ne5 {[%clk 00:05:27]} {[%emt 00:00:16]}
30. Rf4 {[%clk 00:07:18]} {[%emt 00:00:31]} Ra5 {[%clk 00:05:17]} {[%emt
00:00:14]} 31. Rxf5 {[%clk 00:06:35]} {[%emt 00:00:49]} Rc5 {[%clk 00:05:20]}
{[%emt 00:00:02]} 32. Nb5 {[%clk 00:06:22]} {[%emt 00:00:18]} Rxd5 {[%clk
00:05:05]} {[%emt 00:00:21]} 33. Nc7 {[%clk 00:06:12]} {[%emt 00:00:15]} Rd2
{[%clk 00:04:10]} {[%emt 00:00:59]} 34. a5 {[%clk 00:05:26]} {[%emt 00:00:51]}
Ra2 {[%clk 00:04:00]} {[%emt 00:00:15]} 35. a6 {[%clk 00:05:25]} {[%emt
00:00:06]} Nd7 {[%clk 00:03:28]} {[%emt 00:00:37]} 36. Rb5 {[%clk 00:03:15]}
{[%emt 00:02:15]} Nc5 {[%clk 00:03:31]} {[%emt 00:00:02]} 37. Rb8+ {[%clk
00:02:47]} {[%emt 00:00:33]} Kf7 {[%clk 00:03:34]} {[%emt 00:00:02]} 38. Ra8
{[%clk 00:02:51]} {[%emt 00:00:01]} Nd7 {[%clk 00:03:15]} {[%emt 00:00:25]} 39.
Nb5 {[%clk 00:02:15]} {[%emt 00:00:41]} Ra5 {[%clk 00:02:28]} {[%emt 00:00:52]}
40. a7 {[%clk 00:01:39]} {[%emt 00:00:41]} Rxb5 {[%clk 00:02:30]} {[%emt
00:00:02]} 41. Rf8+ {[%clk 00:01:43]} Nxf8 {[%clk 00:02:20]} {[%emt 00:00:16]}
42. a8=Q {[%emt 00:00:02]} Re5 {[%clk 00:02:06]} {[%emt 00:00:17]} 43. f4
{[%clk 00:01:46]} {[%emt 00:00:06]} Re2+ {[%clk 00:01:59]} {[%emt 00:00:11]} 44.
Kg1 {[%clk 00:01:42]} {[%emt 00:00:10]} Rd2 {[%clk 00:01:45]} {[%emt 00:00:19]}
45. f5 {[%clk 00:01:41]} {[%emt 00:00:06]} Rd4 {[%clk 00:01:26]} {[%emt
00:00:24]} 46. Qa2+ {[%clk 00:01:25]} {[%emt 00:00:22]} Kf6 {[%clk 00:00:37]}
{[%emt 00:00:53]} 47. Qg8 {[%clk 00:01:13]} {[%emt 00:00:17]} 1-0

[Event "New Zealand Rapid Championship"]
[Site "Wellington"]
[Date "2023.01.12"]
[Round "7.4"]
[White "Carpinter, Anthony L"]
[Black "Van der Hoorn, Thomas"]
[Result "0-1"]
[TimeControl "25+5"]
[WhiteFideId "4300238"]
[BlackFideId "4314565"]
[WhiteElo "2147"]
[BlackElo "1888"]

1. Nf3 {[%clk 00:25:06]} {[%emt 00:00:03]} d5 {[%clk 00:25:05]} {[%emt
00:00:05]} 2. e3 {[%clk 00:25:02]} {[%emt 00:00:10]} Nf6 {[%clk 00:25:02]}
{[%emt 00:00:08]} 3. b3 {[%clk 00:25:01]} {[%emt 00:00:06]} e6 {[%clk
00:25:00]} {[%emt 00:00:06]} 4. Bb2 {[%clk 00:24:52]} {[%emt 00:00:15]} Be7
{[%clk 00:24:57]} {[%emt 00:00:07]} 5. c4 {[%clk 00:24:31]} {[%emt 00:00:27]}
O-O {[%clk 00:24:53]} {[%emt 00:00:09]} 6. Be2 {[%clk 00:24:02]} {[%emt
00:00:34]} b6 {[%clk 00:24:50]} {[%emt 00:00:09]} 7. O-O {[%clk 00:23:24]}
{[%emt 00:00:43]} Bb7 {[%clk 00:24:46]} {[%emt 00:00:08]} 8. cxd5 {[%clk
00:23:16]} {[%emt 00:00:13]} Nxd5 {[%clk 00:24:36]} {[%emt 00:00:14]} 9. Nc3
{[%clk 00:20:51]} {[%emt 00:02:31]} Bf6 {[%clk 00:23:18]} {[%emt 00:01:23]} 10.
Rc1 {[%clk 00:20:47]} {[%emt 00:00:09]} Nd7 {[%clk 00:22:59]} {[%emt 00:00:23]}
11. Qc2 {[%clk 00:19:44]} {[%emt 00:01:09]} c5 {[%clk 00:20:14]} {[%emt
00:02:50]} 12. Rfd1 {[%clk 00:17:43]} {[%emt 00:02:06]} Qe7 {[%clk 00:18:36]}
{[%emt 00:01:42]} 13. a3 {[%clk 00:15:41]} {[%emt 00:02:08]} Rac8 {[%clk
00:17:43]} {[%emt 00:00:57]} 14. Qb1 {[%clk 00:14:57]} {[%emt 00:00:50]} Rfd8
{[%clk 00:15:47]} {[%emt 00:02:00]} 15. Nxd5 {[%clk 00:13:32]} {[%emt
00:01:28]} Bxd5 {[%clk 00:14:55]} {[%emt 00:01:00]} 16. b4 {[%clk 00:13:07]}
{[%emt 00:00:31]} cxb4 {[%clk 00:13:24]} {[%emt 00:01:36]} 17. Bxf6 {[%clk
00:13:01]} {[%emt 00:00:11]} Nxf6 {[%clk 00:13:19]} {[%emt 00:00:09]} 18. axb4
{[%clk 00:13:00]} {[%emt 00:00:06]} a5 {[%clk 00:11:03]} {[%emt 00:02:21]} 19.
bxa5 {[%clk 00:10:48]} {[%emt 00:02:18]} bxa5 {[%clk 00:11:03]} {[%emt
00:00:05]} 20. Qb5 {[%clk 00:09:37]} {[%emt 00:01:15]} Qa7 {[%clk 00:09:08]}
{[%emt 00:01:59]} 21. Ra1 {[%clk 00:09:09]} {[%emt 00:00:34]} Ra8 {[%clk
00:08:50]} {[%emt 00:00:21]} 22. Qa4 {[%clk 00:04:20]} {[%emt 00:04:55]} Ne4
{[%clk 00:07:34]} {[%emt 00:01:19]} 23. Rdc1 {[%clk 00:04:01]} {[%emt
00:00:26]} Nc5 {[%clk 00:06:45]} {[%emt 00:00:55]} 24. Qa3 {[%clk 00:04:04]}
{[%emt 00:00:02]} Nb3 {[%clk 00:06:35]} {[%emt 00:00:14]} 25. Rcb1 {[%clk
00:04:02]} {[%emt 00:00:07]} Nxa1 {[%clk 00:06:32]} {[%emt 00:00:08]} 26. Rxa1
{[%clk 00:04:06]} Rdb8 {[%clk 00:05:58]} {[%emt 00:00:39]} 27. Bd3 {[%clk
00:02:24]} {[%emt 00:01:47]} Rb3 {[%clk 00:05:23]} {[%emt 00:00:40]} 0-1

[Event "New Zealand Rapid Championship"]
[Site "Wellington"]
[Date "2023.01.12"]
[Round "7.5"]
[White "Parfene, Horatiu"]
[Black "Park-Tamati, Philli"]
[Result "1-0"]
[TimeControl "25+5"]
[WhiteFideId "1208438"]
[BlackFideId "4309090"]
[WhiteElo "2085"]
[BlackElo "1861"]

1. e4 {[%clk 00:25:08]} {[%emt 00:00:01]} c6 {[%clk 00:25:06]} {[%emt
00:00:05]} 2. Nc3 {[%clk 00:25:00]} {[%emt 00:00:14]} d5 {[%clk 00:25:09]}
{[%emt 00:00:02]} 3. g3 {[%clk 00:25:02]} {[%emt 00:00:03]} dxe4 {[%clk
00:25:02]} {[%emt 00:00:12]} 4. Nxe4 {[%clk 00:25:06]} {[%emt 00:00:01]} Bf5
{[%clk 00:24:57]} {[%emt 00:00:09]} 5. Bg2 {[%clk 00:24:59]} {[%emt 00:00:12]}
Nd7 {[%clk 00:24:58]} {[%emt 00:00:05]} 6. Ne2 {[%clk 00:24:50]} {[%emt
00:00:14]} Ngf6 {[%clk 00:24:55]} {[%emt 00:00:07]} 7. d3 {[%clk 00:24:00]}
{[%emt 00:00:55]} e5 {[%clk 00:24:44]} {[%emt 00:00:17]} 8. O-O {[%clk
00:23:56]} {[%emt 00:00:09]} Be7 {[%clk 00:24:44]} {[%emt 00:00:04]} 9. b3
{[%clk 00:21:01]} {[%emt 00:03:01]} O-O {[%clk 00:23:42]} {[%emt 00:01:07]} 10.
Bb2 {[%clk 00:20:51]} {[%emt 00:00:15]} Qb6 {[%clk 00:23:11]} {[%emt 00:00:36]}
11. Nd2 {[%clk 00:16:39]} {[%emt 00:04:17]} Rad8 {[%clk 00:22:48]} {[%emt
00:00:27]} 12. Nc4 {[%clk 00:16:40]} {[%emt 00:00:05]} Qc7 {[%clk 00:22:49]}
{[%emt 00:00:01]} 13. Ne3 {[%clk 00:16:31]} {[%emt 00:00:15]} Be6 {[%clk
00:22:29]} {[%emt 00:00:27]} 14. a4 {[%clk 00:14:49]} {[%emt 00:01:48]} Rfe8
{[%clk 00:21:08]} {[%emt 00:01:24]} 15. h3 {[%clk 00:12:48]} {[%emt 00:02:06]}
Nd5 {[%clk 00:20:16]} {[%emt 00:00:57]} 16. Nc4 {[%clk 00:11:53]} {[%emt
00:01:01]} f6 {[%clk 00:19:36]} {[%emt 00:00:44]} 17. Kh2 {[%clk 00:10:42]}
{[%emt 00:01:16]} h5 {[%clk 00:19:07]} {[%emt 00:00:34]} 18. Ng1 {[%clk
00:09:02]} {[%emt 00:01:45]} h4 {[%clk 00:18:50]} {[%emt 00:00:22]} 19. Qh5
{[%clk 00:08:07]} {[%emt 00:01:01]} hxg3+ {[%clk 00:18:05]} {[%emt 00:00:50]}
20. fxg3 {[%clk 00:08:10]} {[%emt 00:00:01]} b5 {[%clk 00:17:49]} {[%emt
00:00:21]} 21. axb5 {[%clk 00:07:45]} {[%emt 00:00:30]} cxb5 {[%clk 00:17:52]}
{[%emt 00:00:01]} 22. Bxd5 {[%clk 00:07:10]} {[%emt 00:00:40]} Bxd5 {[%clk
00:17:52]} {[%emt 00:00:05]} 23. Ne3 {[%clk 00:07:14]} {[%emt 00:00:02]} Bf7
{[%clk 00:17:50]} {[%emt 00:00:06]} 24. Qg4 {[%clk 00:07:04]} {[%emt 00:00:15]}
Nf8 {[%clk 00:17:22]} {[%emt 00:00:32]} 25. Ra6 {[%clk 00:06:11]} {[%emt
00:00:59]} Bc5 {[%clk 00:16:14]} {[%emt 00:01:14]} 26. Raxf6 {[%clk 00:05:28]}
{[%emt 00:00:47]} Bxe3 {[%clk 00:16:14]} {[%emt 00:00:05]} 27. Rxf7 {[%clk
00:05:06]} {[%emt 00:00:27]} Qxc2+ {[%clk 00:13:34]} {[%emt 00:02:46]} 28. R1f2
{[%clk 00:04:30]} {[%emt 00:00:40]} Qxf2+ {[%clk 00:13:27]} {[%emt 00:00:13]}
29. Rxf2 {[%clk 00:04:33]} {[%emt 00:00:02]} Bxf2 {[%clk 00:13:31]} 30. Nf3
{[%clk 00:04:02]} {[%emt 00:00:37]} Rxd3 {[%clk 00:13:26]} {[%emt 00:00:10]} 31.
Kg2 {[%clk 00:01:58]} {[%emt 00:02:10]} Bxg3 {[%clk 00:13:18]} {[%emt
00:00:13]} 32. Qxg3 {[%clk 00:01:36]} {[%emt 00:00:27]} Nd7 {[%clk 00:11:50]}
{[%emt 00:01:33]} 33. Qg6 {[%clk 00:01:34]} {[%emt 00:00:07]} Nf6 {[%clk
00:10:20]} {[%emt 00:01:35]} 34. Qxd3 {[%clk 00:01:19]} {[%emt 00:00:20]} e4
{[%clk 00:10:24]} 35. Qxb5 {[%emt 00:00:07]} exf3+ {[%emt 00:00:01]} 36. Kxf3
{[%clk 00:01:13]} {[%emt 00:00:04]} Rf8 {[%clk 00:10:11]} {[%emt 00:00:18]} 37.
Kg3 {[%clk 00:00:54]} {[%emt 00:00:24]} Ne4+ {[%clk 00:09:14]} {[%emt
00:01:03]} 38. Kg4 {[%clk 00:00:58]} {[%emt 00:00:01]} Nf2+ {[%clk 00:09:18]}
{[%emt 00:00:02]} 39. Kh4 {[%clk 00:00:57]} {[%emt 00:00:04]} Rf7 {[%clk
00:08:34]} {[%emt 00:00:50]} 40. Qd5 {[%clk 00:01:00]} {[%emt 00:00:01]} g6
{[%clk 00:08:13]} {[%emt 00:00:27]} 41. Bd4 {[%clk 00:00:58]} {[%emt 00:00:06]}
Nd3 {[%clk 00:07:44]} {[%emt 00:00:34]} 42. Qa8+ {[%clk 00:00:54]} {[%emt
00:00:09]} Rf8 {[%clk 00:07:47]} {[%emt 00:00:03]} 43. Qxa7 {[%clk 00:00:56]}
{[%emt 00:00:03]} Rf7 {[%clk 00:07:41]} {[%emt 00:00:11]} 44. Qa8+ {[%clk
00:00:55]} {[%emt 00:00:06]} Rf8 {[%clk 00:07:43]} {[%emt 00:00:03]} 45. Qd5+
{[%clk 00:00:57]} {[%emt 00:00:02]} Rf7 {[%clk 00:07:47]} {[%emt 00:00:02]} 46.
Kg5 {[%clk 00:00:56]} {[%emt 00:00:07]} Nf4 {[%clk 00:07:50]} {[%emt 00:00:02]}
47. Qa8+ {[%clk 00:00:55]} {[%emt 00:00:05]} Rf8 {[%clk 00:07:53]} {[%emt
00:00:02]} 48. Qxf8+ {[%clk 00:00:58]} {[%emt 00:00:02]} 1-0

[Event "New Zealand Rapid Championship"]
[Site "Wellington"]
[Date "2023.01.12"]
[Round "7.6"]
[White "Ning, Isabelle Yixuan"]
[Black "Zhang, Kendrick Botong"]
[Result "1/2-1/2"]
[TimeControl "25+5"]
[WhiteTitle "WCM"]
[BlackTitle "CM"]
[WhiteFideId "4307763"]
[BlackFideId "4307704"]
[WhiteElo "1911"]
[BlackElo "1870"]

1. d4 {[%clk 00:25:06]} {[%emt 00:00:04]} Nf6 {[%clk 00:25:07]} {[%emt
00:00:03]} 2. c4 {[%clk 00:25:04]} {[%emt 00:00:06]} g6 {[%clk 00:25:08]}
{[%emt 00:00:04]} 3. Nc3 {[%clk 00:25:02]} {[%emt 00:00:07]} d5 {[%clk
00:25:12]} 4. Nf3 {[%clk 00:25:00]} {[%emt 00:00:08]} Bg7 {[%clk 00:25:13]}
{[%emt 00:00:03]} 5. Bf4 {[%clk 00:25:00]} {[%emt 00:00:06]} O-O {[%clk
00:24:43]} {[%emt 00:00:34]} 6. Rc1 {[%clk 00:24:45]} {[%emt 00:00:20]} c5
{[%clk 00:14:31]} {[%emt 00:10:17]} 7. e3 {[%clk 00:22:52]} {[%emt 00:01:58]}
cxd4 {[%clk 00:13:52]} {[%emt 00:00:44]} 8. exd4 {[%clk 00:22:21]} {[%emt
00:00:36]} Nc6 {[%clk 00:13:23]} {[%emt 00:00:34]} 9. Be2 {[%clk 00:20:27]}
{[%emt 00:01:59]} Bf5 {[%clk 00:11:14]} {[%emt 00:02:15]} 10. O-O {[%clk
00:18:51]} {[%emt 00:01:41]} dxc4 {[%clk 00:10:00]} {[%emt 00:01:20]} 11. Bxc4
{[%clk 00:18:39]} {[%emt 00:00:16]} Rc8 {[%clk 00:09:18]} {[%emt 00:00:45]} 12.
Bb3 {[%clk 00:17:32]} {[%emt 00:01:14]} Na5 {[%clk 00:05:47]} {[%emt 00:03:37]}
13. Re1 {[%clk 00:15:44]} {[%emt 00:01:52]} e6 {[%clk 00:04:43]} {[%emt
00:01:09]} 14. Bg5 {[%clk 00:13:32]} {[%emt 00:02:18]} h6 {[%clk 00:04:32]}
{[%emt 00:00:15]} 15. Bh4 {[%clk 00:13:21]} {[%emt 00:00:17]} g5 {[%clk
00:04:35]} {[%emt 00:00:01]} 16. Bg3 {[%clk 00:13:05]} {[%emt 00:00:21]} Bg4
{[%clk 00:03:17]} {[%emt 00:01:23]} 17. Bc2 {[%clk 00:11:17]} {[%emt 00:01:52]}
Nc4 {[%clk 00:02:28]} {[%emt 00:00:55]} 18. Bb3 {[%clk 00:06:17]} {[%emt
00:05:06]} Nh5 {[%clk 00:01:29]} {[%emt 00:01:04]} 19. Qd3 {[%clk 00:05:13]}
{[%emt 00:01:09]} Nxg3 {[%clk 00:00:53]} {[%emt 00:00:42]} 20. hxg3 {[%clk
00:05:09]} {[%emt 00:00:07]} Nxb2 {[%clk 00:00:34]} {[%emt 00:00:24]} 21. Qe2
{[%clk 00:05:05]} {[%emt 00:00:09]} Bxf3 {[%clk 00:00:37]} {[%emt 00:00:02]} 22.
Qxb2 {[%clk 00:04:01]} {[%emt 00:01:09]} Qxd4 {[%clk 00:00:32]} {[%emt
00:00:10]} 23. gxf3 {[%clk 00:02:32]} {[%emt 00:01:34]} Rxc3 {[%clk 00:00:37]}
{[%emt 00:00:01]} 24. Rcd1 {[%clk 00:02:14]} {[%emt 00:00:22]} Rd3 {[%clk
00:00:29]} {[%emt 00:00:12]} 25. Qxd4 {[%emt 00:00:57]} Rxd4 {[%clk 00:00:33]}
26. Rxd4 {[%clk 00:01:25]} {[%emt 00:00:03]} Bxd4 {[%clk 00:00:37]} {[%emt
00:00:01]} 27. Rd1 {[%clk 00:01:29]} e5 {[%clk 00:00:19]} {[%emt 00:00:24]} 28.
Kg2 {[%clk 00:01:05]} {[%emt 00:00:28]} Kg7 {[%clk 00:00:22]} {[%emt 00:00:02]}
29. Bd5 {[%clk 00:01:05]} {[%emt 00:00:06]} b6 {[%clk 00:00:23]} {[%emt
00:00:04]} 30. Rc1 {[%clk 00:01:03]} {[%emt 00:00:07]} Bc5 {[%clk 00:00:20]}
{[%emt 00:00:08]} 31. Re1 {[%clk 00:00:53]} {[%emt 00:00:15]} f6 {[%clk
00:00:20]} {[%emt 00:00:06]} 32. Re2 {[%clk 00:00:29]} {[%emt 00:00:29]} Rd8
{[%clk 00:00:24]} {[%emt 00:00:02]} 33. Be4 {[%clk 00:00:33]} Kf7 {[%clk
00:00:22]} {[%emt 00:00:07]} 34. Kh3 {[%clk 00:00:32]} {[%emt 00:00:05]} Rd4
{[%clk 00:00:13]} {[%emt 00:00:14]} 35. Kg4 {[%clk 00:00:26]} {[%emt 00:00:12]}
Ke6 {[%clk 00:00:17]} 36. Kh5 {[%clk 00:00:27]} {[%emt 00:00:03]} f5 {[%clk
00:00:19]} {[%emt 00:00:04]} 37. Bc2 {[%clk 00:00:27]} {[%emt 00:00:04]} Rd8
{[%clk 00:00:18]} {[%emt 00:00:06]} 38. Kg6 {[%clk 00:00:11]} {[%emt 00:00:22]}
Rg8 {[%clk 00:00:16]} {[%emt 00:00:07]} 39. Kh5 {[%clk 00:00:10]} {[%emt
00:00:05]} Kf6 {[%clk 00:00:15]} {[%emt 00:00:07]} 40. Bb3 {[%clk 00:00:11]}
{[%emt 00:00:04]} Rd8 {[%clk 00:00:18]} {[%emt 00:00:02]} 41. Bc4 {[%clk
00:00:13]} {[%emt 00:00:03]} Rc8 {[%clk 00:00:16]} {[%emt 00:00:06]} 42. Bb3
{[%clk 00:00:17]} {[%emt 00:00:01]} Bd4 {[%clk 00:00:19]} {[%emt 00:00:02]} 43.
Rd2 {[%clk 00:00:18]} {[%emt 00:00:04]} a6 {[%clk 00:00:21]} {[%emt 00:00:02]}
44. f4 {[%clk 00:00:17]} {[%emt 00:00:06]} Rc1 {[%clk 00:00:11]} {[%emt
00:00:16]} 45. fxe5+ {[%clk 00:00:11]} {[%emt 00:00:11]} Bxe5 {[%clk 00:00:15]}
46. Bd5 {[%clk 00:00:14]} {[%emt 00:00:02]} Rc7 {[%clk 00:00:10]} {[%emt
00:00:10]} 47. Bb3 {[%clk 00:00:10]} {[%emt 00:00:10]} Rc1 {[%clk 00:00:09]}
{[%emt 00:00:06]} 48. Bd5 {[%clk 00:00:14]} Ra1 {[%clk 00:00:07]} {[%emt
00:00:07]} 49. Rc2 {[%clk 00:00:15]} {[%emt 00:00:04]} Rd1 {[%clk 00:00:09]}
{[%emt 00:00:03]} 50. Rc6+ {[%emt 00:00:07]} Kg7 {[%clk 00:00:09]} 51. Bg2
{[%clk 00:00:16]} {[%emt 00:00:05]} Rd2 {[%clk 00:00:10]} {[%emt 00:00:05]} 52.
Rg6+ {[%clk 00:00:17]} {[%emt 00:00:03]} Kf8 {[%clk 00:00:10]} {[%emt
00:00:05]} 53. Rxh6 {[%clk 00:00:12]} {[%emt 00:00:10]} Rxf2 {[%clk 00:00:13]}
{[%emt 00:00:01]} 54. Bd5 {[%clk 00:00:15]} {[%emt 00:00:03]} Rh2+ {[%clk
00:00:14]} {[%emt 00:00:04]} 55. Kxg5 {[%clk 00:00:15]} {[%emt 00:00:04]} Rxh6
{[%clk 00:00:17]} {[%emt 00:00:02]} 56. Kxh6 {[%clk 00:00:18]} {[%emt
00:00:02]} Bxg3 {[%clk 00:00:21]} {[%emt 00:00:01]} 57. Kg5 {[%clk 00:00:17]}
{[%emt 00:00:06]} f4 {[%clk 00:00:25]} {[%emt 00:00:01]} 58. Kf6 {[%clk
00:00:19]} {[%emt 00:00:03]} Ke8 {[%clk 00:00:19]} {[%emt 00:00:12]} 59. Ke6
{[%clk 00:00:22]} {[%emt 00:00:02]} b5 {[%emt 00:00:12]} 60. Bb7 {[%clk
00:00:20]} a5 {[%clk 00:00:18]} {[%emt 00:00:06]} 61. Bf3 {[%clk 00:00:19]}
{[%emt 00:00:05]} b4 {[%clk 00:00:16]} {[%emt 00:00:08]} 62. Kd5 {[%clk
00:00:20]} {[%emt 00:00:04]} a4 {[%clk 00:00:18]} {[%emt 00:00:03]} 63. Kc4
{[%clk 00:00:23]} {[%emt 00:00:01]} Be1 {[%clk 00:00:20]} {[%emt 00:00:04]} 64.
Bc6+ {[%clk 00:00:16]} {[%emt 00:00:12]} Ke7 {[%clk 00:00:24]} 65. Bxa4 {[%clk
00:00:16]} {[%emt 00:00:04]} Ke6 {[%clk 00:00:23]} {[%emt 00:00:07]} 66. Bc6
{[%clk 00:00:13]} {[%emt 00:00:08]} Ke5 {[%clk 00:00:25]} {[%emt 00:00:02]} 67.
Bf3 {[%clk 00:00:16]} {[%emt 00:00:01]} Kf5 {[%clk 00:00:27]} {[%emt 00:00:04]}
68. Kb3 {[%clk 00:00:20]} Kg5 {[%clk 00:00:31]} {[%emt 00:00:01]} 69. a3 {[%clk
00:00:24]} 1/2-1/2

[Event "New Zealand Rapid Championship"]
[Site "Wellington"]
[Date "2023.01.12"]
[Round "7.7"]
[White "Dive, Russell J"]
[Black "Young, Cohen"]
[Result "1-0"]
[TimeControl "25+5"]
[WhiteTitle "IM"]
[WhiteFideId "4300106"]
[BlackFideId "4317440"]
[WhiteElo "2367"]
[BlackElo "1777"]

1. Nf3 {[%clk 00:25:08]} Nf6 {[%clk 00:25:09]} {[%emt 00:00:02]} 2. c4 {[%clk
00:25:12]} e6 {[%clk 00:25:13]} {[%emt 00:00:02]} 3. g3 {[%clk 00:25:15]}
{[%emt 00:00:02]} a6 {[%clk 00:25:17]} 4. Bg2 {[%clk 00:24:50]} {[%emt
00:00:30]} b5 {[%clk 00:25:22]} 5. b3 {[%clk 00:24:38]} {[%emt 00:00:16]} Bb7
{[%clk 00:25:20]} {[%emt 00:00:07]} 6. O-O {[%clk 00:24:37]} {[%emt 00:00:06]}
c5 {[%clk 00:25:22]} {[%emt 00:00:03]} 7. a4 {[%clk 00:24:32]} {[%emt
00:00:10]} bxc4 {[%clk 00:23:00]} {[%emt 00:02:28]} 8. bxc4 {[%clk 00:24:36]}
{[%emt 00:00:02]} d6 {[%clk 00:22:25]} {[%emt 00:00:39]} 9. Nc3 {[%clk
00:24:03]} {[%emt 00:00:37]} Be7 {[%clk 00:22:26]} {[%emt 00:00:04]} 10. Rb1
{[%clk 00:24:06]} {[%emt 00:00:03]} Qc7 {[%clk 00:22:19]} {[%emt 00:00:11]} 11.
Qb3 {[%clk 00:23:26]} {[%emt 00:00:46]} Bc6 {[%clk 00:21:39]} {[%emt 00:00:45]}
12. Qb6 {[%clk 00:23:19]} {[%emt 00:00:12]} Qxb6 {[%clk 00:21:17]} {[%emt
00:00:28]} 13. Rxb6 {[%clk 00:23:22]} {[%emt 00:00:02]} Bd8 {[%clk 00:21:12]}
{[%emt 00:00:09]} 14. Rb1 {[%clk 00:22:42]} {[%emt 00:00:45]} Nbd7 {[%clk
00:20:56]} {[%emt 00:00:21]} 15. d3 {[%clk 00:21:27]} {[%emt 00:01:20]} Ba5
{[%clk 00:20:44]} {[%emt 00:00:18]} 16. Bd2 {[%clk 00:21:22]} {[%emt 00:00:09]}
Ke7 {[%clk 00:19:21]} {[%emt 00:01:28]} 17. Nd5+ {[%clk 00:20:37]} {[%emt
00:00:50]} exd5 {[%clk 00:19:04]} {[%emt 00:00:22]} 18. Bxa5 {[%clk 00:20:36]}
{[%emt 00:00:06]} dxc4 {[%clk 00:18:27]} {[%emt 00:00:42]} 19. dxc4 {[%clk
00:20:39]} {[%emt 00:00:02]} Rab8 {[%clk 00:16:24]} {[%emt 00:02:09]} 20. Nd4
{[%clk 00:20:08]} {[%emt 00:00:35]} cxd4 {[%clk 00:14:00]} {[%emt 00:02:30]} 21.
Bxc6 {[%clk 00:20:11]} {[%emt 00:00:02]} Ne5 {[%clk 00:13:24]} {[%emt
00:00:40]} 22. Bd5 {[%clk 00:18:51]} {[%emt 00:01:25]} Nxd5 {[%clk 00:12:38]}
{[%emt 00:00:51]} 23. cxd5 {[%clk 00:18:54]} {[%emt 00:00:02]} Nc4 {[%clk
00:11:36]} {[%emt 00:01:08]} 24. Bc7 {[%clk 00:17:45]} {[%emt 00:01:13]} Rxb1
{[%clk 00:10:09]} {[%emt 00:01:32]} 25. Rxb1 {[%clk 00:17:48]} {[%emt
00:00:01]} Kd7 {[%clk 00:09:53]} {[%emt 00:00:22]} 26. Rb7 {[%clk 00:17:08]}
{[%emt 00:00:45]} Rc8 {[%clk 00:09:17]} {[%emt 00:00:41]} 27. Bb6+ {[%clk
00:16:52]} {[%emt 00:00:21]} Ke8 {[%clk 00:09:22]} 28. Bxd4 {[%clk 00:16:54]}
{[%emt 00:00:03]} g6 {[%clk 00:09:26]} {[%emt 00:00:02]} 29. Kg2 {[%clk
00:15:17]} {[%emt 00:01:41]} 1-0